bitfinex/quotes_ETHUSD_20260308
["timestamp","ask_amount","ask_price","bid_price","bid_amount"]
[1772953570932,0.46872637,1956.0,1955.0,0.00253886]
[1772953570933,0.46672637,1955.8,1955.0,0.00253886]
[1772953571788,0.46672637,1955.8,1954.4,1.74337186]
[1772953571994,0.46672637,1955.3,1954.4,0.46423514]
[1772953572217,0.46672637,1955.3,1954.3,1.2792234]
[1772953572396,0.46672637,1955.3,1954.2,0.001]
[1772953572602,0.46672637,1955.3,1954.2,1.28027901]
[1772953572816,0.46672637,1955.3,1954.2,1.28028546]
[1772953573201,0.46672637,1955.3,1954.2,0.001]
[1772953574108,0.46672637,1955.1,1954.2,0.001]
[1772953574602,0.46672637,1954.9,1954.2,0.001]
[1772953575648,0.46672637,1955.1,1954.2,0.46523514]
[1772953577433,1.74549874,1955.0,1954.2,1.74452273]
[1772953578129,0.46672637,1954.9,1954.2,0.001]
[1772953579633,0.46672637,1954.7,1954.2,0.001]
[1772953581734,1.74576044,1954.6,1954.2,0.001]
[1772953582127,0.46672637,1954.6,1954.2,0.001]
[1772953584639,1.27909951,1954.5,1954.2,0.001]
[1772953584811,1.27909951,1954.5,1954.3,0.001]
[1772953585744,1.74581046,1954.6,1954.3,0.001]
[1772953585946,5.11572354,1954.8,1954.3,0.001]
[1772953586235,1.74562368,1954.9,1954.3,0.46523514]
[1772953586436,1.27889731,1954.9,1954.3,0.46523514]
[1772953586842,5.11735116,1955.0,1954.3,1.74445184]
[1772953587009,5.58407753,1955.0,1954.3,1.74445184]
[1772953587936,0.46672637,1954.9,1954.3,0.001]
[1772953589112,1.74562958,1954.8,1954.3,0.001]
[1772953592460,0.4638338,1955.0,1954.3,0.47349935]
[1772953592613,0.002,1955.0,1954.3,0.47349935]
[1772953593739,0.002,1955.0,1954.5,0.47249935]
[1772953594613,1.27849022,1955.5,1954.5,0.47249935]
[1772953594833,1.74032402,1955.5,1954.5,0.47249935]
[1772953595033,0.4618338,1955.4,1954.5,0.47249935]
[1772953596645,1.74039799,1955.4,1954.7,0.47249935]
[1772953596847,1.27849175,1955.5,1954.7,0.47249935]
[1772953597441,1.74032555,1955.5,1954.7,0.47249935]
[1772953598546,0.4618338,1955.5,1954.8,1.27890321]
[1772953598723,1.74028715,1955.5,1954.8,1.75140256]
[1772953599270,0.4618338,1955.4,1954.8,1.75140256]
[1772953599413,0.4618338,1955.4,1954.9,0.47249935]
[1772953599836,0.002,1955.3,1954.9,0.47249935]
[1772953600247,0.4638338,1955.4,1954.9,0.47249935]
[1772953600248,0.002,1955.4,1954.9,0.47249935]
[1772953601234,0.002,1955.4,1955.0,1.27877237]
[1772953601546,0.002,1955.4,1955.1,0.47249935]
[1772953603221,0.002,1955.4,1955.2,1.27864157]
[1772953603440,0.002,1955.4,1954.9,0.47249935]
[1772953605450,0.002,1955.4,1955.0,1.75127172]
[1772953608926,0.002,1955.4,1955.0,1.27877237]
[1772953609128,0.002,1955.4,1954.9,5.11508951]
[1772953609129,0.002,1955.4,1954.8,0.47249935]
[1772953609327,0.37612522,1955.4,1954.8,1.75134064]
[1772953609640,1.65464683,1955.4,1954.8,1.75134064]
[1772953609847,0.37412522,1955.3,1954.8,1.75134064]
[1772953611657,0.37412522,1955.3,1954.6,1.75153342]
[1772953611840,1.65276679,1955.2,1954.6,1.75153342]
[1772953612265,0.34152313,1955.9,1954.7,0.47249935]
[1772953612430,0.34152313,1955.9,1954.9,0.47249935]
[1772953612828,1.61971236,1955.9,1954.9,0.47249935]
[1772953613860,0.002,1955.3,1955.1,0.47249935]
[1772953614063,0.34152313,1955.9,1955.1,0.47249935]
[1772953614860,1.2796655,1956.0,1955.1,0.47249935]
[1772953615938,0.37766408,1956.0,1955.3,0.47249935]
[1772953617065,0.37766408,1956.0,1955.1,1.75116952]
[1772953617433,0.37766408,1956.0,1955.2,0.47249935]
[1772953618362,0.37766408,1956.0,1955.0,1.75122188]
[1772953618363,0.37612522,1955.8,1955.0,1.75122188]
[1772953619064,0.37612522,1955.8,1955.1,0.47249935]
[1772953620162,0.37612522,1955.8,1955.0,1.27872253]
[1772953620163,0.37612522,1955.6,1954.9,0.001]
[1772953620368,0.37612522,1955.4,1954.9,0.001]
[1772953622258,1.65470139,1955.3,1954.9,0.001]
[1772953622848,0.37612522,1955.2,1954.6,0.001]
[1772953623470,0.37512522,1955.4,1954.6,0.46328344]
[1772953623770,1.65350525,1955.6,1954.7,0.46228344]
[1772953624567,0.37512522,1955.6,1954.9,0.46228344]
[1772953624749,1.65351372,1955.6,1954.9,0.46228344]
[1772953625739,1.60351372,1955.6,1954.9,0.46228344]
[1772953626669,1.60351372,1955.6,1955.0,1.27877237]
[1772953627065,0.32512522,1955.6,1955.0,1.74105581]
[1772953627271,1.60333978,1955.9,1955.1,0.46228344]
[1772953627470,1.27819612,1955.9,1955.1,0.46228344]
[1772953627971,0.002,1955.5,1955.1,0.46228344]
[1772953628649,0.002,1955.5,1955.1,1.74094625]
[1772953629250,0.002,1955.5,1955.1,0.46228344]
[1772953629738,0.002,1955.5,1954.9,1.74210489]
[1772953629944,0.002,1955.5,1954.9,0.46328344]
[1772953630253,0.31670855,1955.5,1954.9,1.74211098]
[1772953631239,1.27851079,1955.4,1954.9,1.74209071]
[1772953632574,0.002,1955.5,1955.0,0.46228344]
[1772953633242,0.002,1955.5,1955.2,0.46228344]
[1772953633677,0.31670855,1955.7,1955.0,1.27872446]
[1772953634979,0.31670855,1955.7,1954.9,1.7420791]
[1772953637481,0.31670855,1955.5,1954.9,1.7420791]
[1772953640287,0.31670855,1955.5,1955.0,0.46228344]
[1772953640959,0.31670855,1955.8,1955.0,0.46228344]
[1772953641283,0.002,1955.6,1955.0,0.46228344]
[1772953641858,0.31870855,1955.6,1955.0,0.46228344]
[1772953642587,1.59709598,1955.6,1955.1,1.27870697]
[1772953642988,1.59709572,1955.6,1955.1,1.27870697]
[1772953644087,1.59710607,1955.6,1955.1,1.27870697]
[1772953644771,1.59710162,1955.6,1955.1,1.27870697]
[1772953644977,0.31670855,1955.5,1955.1,1.27870697]
[1772953646485,0.31670855,1955.5,1955.1,1.74099041]
[1772953649502,0.002,1955.6,1955.2,0.46228344]
[1772953649702,0.31870855,1955.6,1955.3,1.27857617]
[1772953650594,0.31870855,1955.6,1955.1,5.1147005]
[1772953651593,0.31870855,1955.6,1955.1,5.57698394]
[1772953652593,0.31870855,1955.6,1954.9,5.11634422]
[1772953652594,0.31870855,1955.6,1955.2,0.46228344]
[1772953654697,0.31870855,1955.6,1955.3,1.27857617]
[1772953658495,1.53453886,1956.0,1955.5,0.49948602]
[1772953658496,0.00153886,1956.0,1955.5,0.49948602]
[1772953659876,0.00153886,1956.0,1955.7,0.49948602]
[1772953660695,1.27799309,1956.2,1955.7,0.49948602]
[1772953660903,0.31820174,1956.1,1955.3,1.77804515]
[1772953661199,0.31820174,1956.1,1955.1,0.49948602]
[1772953662707,2.47866532,1955.9,1955.0,0.00253886]
[1772953663003,0.31820174,1955.8,1955.0,0.50202488]
[1772953664768,1.5965164,1955.7,1955.1,1.77819299]
[1772953664996,1.5965164,1955.7,1955.2,0.49948602]
[1772953665516,0.31820174,1955.6,1955.2,0.49948602]
[1772953666788,1.59661539,1955.6,1955.2,0.49948602]
[1772953668012,1.2781186,1956.0,1955.3,0.49948602]
[1772953668311,0.31820174,1955.9,1955.3,0.49948602]
[1772953668512,0.31820174,1955.8,1955.0,0.00253886]
[1772953668681,1.27831466,1955.7,1955.0,1.78079452]
[1772953669003,0.31820174,1955.6,1955.1,0.49948602]
[1772953669382,0.31820174,1955.6,1955.2,0.001]
[1772953669580,0.30551157,1955.5,1955.2,0.001]
[1772953670776,0.30351157,1955.3,1955.2,0.001]
[1772953672896,1.58208774,1955.3,1955.2,0.001]
[1772953673280,0.30251157,1955.2,1955.0,0.00253886]
[1772953674705,0.30251157,1955.2,1954.8,0.001]
[1772953675108,0.30251157,1955.0,1954.8,0.001]
[1772953677276,1.27883779,1954.9,1954.8,0.001]
[1772953677698,1.58133567,1955.0,1954.8,0.001]
[1772953678486,0.30251157,1954.9,1954.6,0.001]
[1772953679713,1.58139583,1954.9,1954.6,0.001]
[1772953680912,0.30151157,1955.3,1954.6,0.50048602]
[1772953681077,1.534,1955.2,1954.6,0.50048602]
[1772953681276,0.30151157,1955.1,1954.6,0.50048602]
[1772953681481,0.30151157,1955.1,1954.6,0.001]
[1772953681682,0.30151157,1954.9,1954.6,0.001]
[1772953684015,1.27890321,1954.8,1954.7,0.001]
[1772953684508,2.81370697,1955.1,1954.7,0.46907618]
[1772953686320,0.30151157,1955.0,1954.6,0.001]
[1772953688230,1.27883779,1954.9,1954.6,0.001]
[1772953688591,2.81483779,1954.9,1954.6,0.46907618]
[1772953689216,2.81483779,1954.9,1954.6,0.001]
[1772953689688,5.11353954,1955.6,1954.6,0.46907618]
[1772953689689,0.30151157,1955.3,1954.6,0.46907618]
[1772953689888,1.83851157,1955.2,1954.6,0.46907618]
[1772953691417,1.58021854,1955.1,1954.6,0.46907618]
[1772953693223,0.30151157,1955.0,1954.6,0.46907618]
[1772953694510,1.27870697,1955.1,1954.6,0.46907618]
[1772953694712,2.81670697,1955.1,1954.6,0.46907618]
[1772953695033,1.58021854,1955.1,1954.6,0.46907618]
[1772953695730,1.58021854,1955.1,1954.7,0.46807618]
[1772953696096,1.27870697,1955.1,1954.7,0.46807618]
[1772953696930,1.58021854,1955.1,1954.7,0.46807618]
[1772953697497,1.58021854,1955.1,1954.7,0.46907618]
[1772953697820,0.002,1954.9,1954.7,0.46907618]
[1772953704112,0.002,1954.9,1954.8,0.46807618]
[1772953704443,0.002,1955.0,1954.9,0.46807618]
[1772953705132,0.002,1955.2,1954.8,0.46807618]
[1772953705308,1.28047304,1955.5,1954.8,0.46807618]
[1772953706132,0.002,1955.5,1955.0,0.46807618]
[1772953708442,0.002,1955.5,1955.1,0.46807618]
[1772953710621,0.002,1955.5,1955.1,1.27869445]
[1772953710819,0.002,1955.5,1955.2,0.46807618]
[1772953711720,0.002,1955.4,1955.2,0.46807618]
[1772953712751,0.002,1955.4,1955.3,0.48088368]
[1772953713451,0.002,1955.4,1955.1,0.48088368]
[1772953715430,0.002,1955.4,1955.2,0.48088368]
[1772953715638,0.29004823,1955.4,1955.0,0.48088368]
[1772953715838,0.002,1955.4,1955.0,0.48088368]
[1772953717133,0.002,1955.4,1955.1,0.48088368]
[1772953719268,0.002,1955.4,1955.2,0.48088368]
[1772953719472,0.002,1955.5,1955.3,0.48088368]
[1772953722768,0.002,1955.5,1955.4,0.48088368]
[1772953724866,0.29204823,1955.5,1955.3,0.001]
[1772953725071,0.002,1955.4,1955.3,0.001]
[1772953727869,0.00153886,1956.0,1955.4,0.48088368]
[1772953728073,1.27818395,1955.9,1955.4,0.48088368]
[1772953729673,5.11402679,1956.0,1955.5,0.48088368]
[1772953731968,1.27965746,1956.0,1955.5,0.48088368]
[1772953734576,1.27965746,1956.0,1955.3,1.76045241]
[1772953734577,0.29004823,1955.9,1955.3,1.76045241]
[1772953734887,0.29004823,1955.9,1955.4,0.48088368]
[1772953735245,1.82304823,1955.9,1955.4,0.48088368]
[1772953736378,0.29004823,1955.7,1955.3,0.48188368]
[1772953736577,0.29004823,1955.7,1955.3,1.76045509]
[1772953736895,1.2782493,1955.8,1955.4,0.48088368]
[1772953737052,1.56829753,1955.8,1955.4,0.48088368]
[1772953737557,0.29004823,1955.7,1955.4,0.48088368]
[1772953737748,0.29004823,1955.7,1955.3,0.001]
[1772953737954,0.29004823,1955.7,1955.3,0.48188368]
[1772953738160,1.27838003,1955.6,1955.3,0.48188368]
[1772953738473,1.56840148,1955.7,1955.4,0.001]
[1772953739781,1.56840148,1955.7,1955.4,0.48188368]
[1772953741985,1.27835325,1955.7,1955.4,0.48188368]
[1772953742577,0.002,1955.9,1955.5,0.48574642]
[1772953742758,6.68145505,1955.8,1955.5,0.48574642]
[1772953742958,0.29004823,1955.7,1955.4,0.001]
[1772953743274,0.29004823,1955.6,1955.4,0.001]
[1772953744271,6.39140682,1955.7,1955.4,0.48674642]
[1772953744476,0.002,1955.9,1955.4,0.48674642]
[1772953744684,6.39140682,1955.8,1955.4,0.48674642]
[1772953745673,0.29004823,1955.6,1955.4,0.001]
[1772953746787,1.27844541,1955.5,1955.4,0.001]
[1772953746963,7.95990046,1955.5,1955.3,0.001]
[1772953747784,6.39140682,1955.4,1955.3,0.001]
[1772953748155,0.28904823,1955.4,1955.3,0.001]
[1772953748371,0.28904823,1955.3,1955.1,0.001]
[1772953749063,7.95708066,1955.3,1955.1,0.001]
[1772953749263,6.38940682,1955.3,1955.1,0.001]
[1772953749669,1.27853951,1955.4,1955.2,0.48574642]
[1772953750090,7.66794633,1955.4,1955.2,0.48574642]
[1772953750290,1.56756693,1955.4,1955.1,0.001]
[1772953750457,6.67845505,1955.3,1955.1,0.001]
[1772953751181,7.66802472,1955.3,1955.1,0.001]
[1772953752195,7.66802472,1955.3,1955.1,0.48674642]
[1772953752196,7.92640682,1955.3,1955.1,0.48674642]
[1772953752383,6.38940682,1955.3,1955.2,0.001]
[1772953752582,7.92640682,1955.3,1955.2,0.001]
[1772953753794,9.20498299,1955.3,1955.2,0.001]
[1772953754090,7.92640682,1955.3,1955.2,0.001]
[1772953754967,7.92740682,1955.3,1955.2,0.001]
[1772953755502,6.38940682,1955.3,1955.2,0.001]
[1772953755668,7.92740682,1955.3,1955.2,0.001]
[1772953756195,7.92840682,1955.3,1955.2,0.001]
[1772953757501,2.81755696,1955.4,1955.2,0.48674642]
[1772953757681,9.20696378,1955.4,1955.2,0.48674642]
[1772953759716,9.49601201,1955.4,1955.1,0.001]
[1772953760008,0.28904823,1955.2,1955.1,0.001]
[1772953760807,6.38940682,1955.3,1955.1,0.001]
[1772953760986,6.38940682,1955.2,1955.1,0.001]
[1772953762104,1.2786205,1955.3,1955.1,0.001]
[1772953762303,6.38940682,1955.2,1955.1,0.001]
[1772953762888,7.93240682,1955.2,1955.1,0.001]
[1772953763296,8.22145505,1955.2,1954.9,0.48674642]
[1772953763812,7.93240682,1955.2,1954.9,0.48674642]
[1772953764304,1.544,1955.3,1955.0,0.48574642]
[1772953764474,7.93340682,1955.3,1955.0,0.48574642]
[1772953766180,7.93340682,1955.3,1955.2,0.48574642]
[1772953766982,6.39140682,1955.3,1955.2,0.48574642]
[1772953767183,0.002,1955.3,1955.2,0.48574642]
[1772953771103,6.39140682,1955.3,1955.2,0.48574642]
[1772953772132,0.28904823,1955.2,1955.1,0.001]
[1772953772331,6.67845505,1955.2,1955.1,0.001]
[1772953772483,6.38940682,1955.2,1955.1,0.001]
[1772953772687,6.38940682,1955.2,1955.1,0.5006175]
[1772953773218,0.002,1955.3,1955.1,0.5006175]
[1772953773526,6.39140682,1955.3,1955.1,0.5006175]
[1772953775378,6.39140682,1955.3,1955.2,0.4996175]
[1772953775789,0.002,1955.3,1955.2,0.4996175]
[1772953776014,5.11537975,1955.7,1955.1,1.27969137]
[1772953776015,1.554,1955.7,1955.1,1.27969137]
[1772953776312,6.39140682,1955.7,1955.2,0.4996175]
[1772953776515,0.002,1955.7,1955.2,0.4996175]
[1772953777394,0.002,1955.8,1955.3,1.27857617]
[1772953777610,0.34282531,1956.0,1955.4,0.4996175]
[1772953778120,0.002,1956.1,1955.5,0.4996175]
[1772953778323,1.56701576,1956.3,1955.5,0.4996175]
[1772953778611,0.002,1956.2,1955.5,0.4996175]
[1772953779495,0.28904823,1956.7,1955.7,0.4996175]
[1772953781219,0.002,1956.6,1955.7,0.4996175]
[1772953781719,0.002,1956.6,1955.9,0.4996175]
[1772953782704,3.16695021,1956.9,1956.0,0.4996175]
[1772953783099,3.16691715,1956.9,1956.0,0.4996175]
[1772953783305,3.43603556,1956.9,1956.0,0.4996175]
[1772953784130,3.43603556,1956.9,1956.1,1.27805326]
[1772953784340,0.35238047,1956.9,1956.2,0.4996175]
[1772953785931,1.89903526,1956.9,1956.2,0.4996175]
[1772953786525,0.35238047,1956.9,1956.4,0.4996175]
[1772953788630,0.35238047,1956.9,1956.5,1.27779197]
[1772953788931,0.26911841,1956.8,1956.3,0.4996175]
[1772953790036,0.26911841,1956.8,1955.8,0.4996175]
[1772953790530,0.26911841,1956.7,1955.8,0.4996175]
[1772953790696,0.26911841,1956.5,1955.8,1.77785052]
[1772953790900,2.82372666,1956.6,1955.9,0.4996175]
[1772953791115,0.26911841,1956.5,1955.9,0.4996175]
[1772953793339,0.26911841,1956.3,1955.8,0.4996175]
[1772953793631,1.27785728,1956.4,1955.8,0.4996175]
[1772953796202,1.27785728,1956.4,1955.9,1.27818395]
[1772953796408,1.54695627,1956.5,1956.0,0.4996175]
[1772953797524,1.27783786,1956.5,1956.0,0.4996175]
[1772953797728,0.26911841,1956.4,1956.0,0.4996175]
[1772953798411,0.26911841,1956.4,1956.1,0.4996175]
[1772953798610,1.54698827,1956.4,1956.1,0.4996175]
[1772953798813,3.09685344,1956.6,1956.1,0.4996175]
[1772953799036,1.27769026,1956.7,1956.1,0.4996175]
[1772953799340,1.27962716,1956.8,1956.1,0.4996175]
[1772953799507,0.002,1956.8,1956.1,0.4996175]
[1772953799712,1.27962568,1956.8,1956.1,0.4996175]
[1772953800113,0.002,1956.8,1956.1,0.4996175]
[1772953800315,0.002,1956.8,1956.3,0.4996175]
[1772953800715,0.00153886,1957.0,1956.3,0.4996175]
[1772953801512,0.27111841,1956.9,1956.3,0.4996175]
[1772953802418,1.27901432,1957.0,1956.5,0.46918807]
[1772953802740,1.55013273,1957.0,1956.5,0.46918807]
[1772953803243,1.27901432,1957.0,1956.5,0.46918807]
[1772953803440,0.002,1956.8,1956.5,0.46918807]
[1772953804420,0.002,1956.8,1956.6,0.45041624]
[1772953805756,0.002,1956.9,1956.6,0.45041624]
[1772953806569,0.27311841,1956.9,1956.4,0.45141624]
[1772953807430,0.27311841,1956.9,1956.4,0.001]
[1772953807631,0.002,1956.9,1956.5,0.45041624]
[1772953808024,0.27311841,1956.9,1956.5,0.45041624]
[1772953808753,1.27759607,1956.8,1956.5,0.45041624]
[1772953811928,1.54871448,1956.8,1956.4,0.001]
[1772953812160,1.54871448,1956.8,1956.4,0.45141624]
[1772953813655,1.27759607,1956.8,1956.4,0.45141624]
[1772953814261,1.54871448,1956.8,1956.4,0.001]
[1772953814432,1.54871448,1956.8,1956.4,0.45141624]
[1772953815342,0.27011841,1956.5,1956.1,0.001]
[1772953815548,5.11050944,1956.8,1956.1,0.45141624]
[1772953815950,6.66250944,1956.8,1956.1,0.45141624]
[1772953816545,6.93262785,1956.8,1956.4,0.45141624]
[1772953816750,0.27011841,1956.7,1956.4,0.001]
[1772953817446,0.27011841,1956.5,1956.4,0.001]
[1772953819459,1.54791038,1956.5,1956.4,0.001]
[1772953819668,1.54791038,1956.5,1956.3,0.001]
[1772953819669,0.27011841,1956.4,1956.3,0.001]
[1772953819854,0.27011841,1956.4,1956.1,0.001]
[1772953822357,0.26911841,1956.2,1955.7,0.45041624]
[1772953824557,2.8319226,1956.3,1955.7,0.45041624]
[1772953824558,3.10104101,1956.3,1955.7,0.45041624]
[1772953825270,0.26911841,1956.2,1955.7,0.45041624]
[1772953826167,2.8319226,1956.3,1955.7,0.45041624]
[1772953826374,3.10104101,1956.3,1955.7,0.45041624]
[1772953827475,2.8319226,1956.3,1955.7,0.45041624]
[1772953827673,0.26911841,1956.2,1955.7,0.45041624]
[1772953828171,0.26911841,1956.2,1955.8,0.45041624]
[1772953828673,1.27805326,1956.1,1955.8,0.45041624]
[1772953829448,1.54717167,1956.1,1955.8,0.45041624]
[1772953829668,1.27805326,1956.1,1955.9,0.001]
[1772953831569,1.54715659,1956.2,1955.9,0.45141624]
[1772953832258,1.557,1956.3,1955.9,0.45141624]
[1772953832457,1.82611841,1956.3,1955.9,0.45141624]
[1772953832654,1.54712857,1956.2,1955.9,0.45141624]
[1772953836494,0.002,1956.6,1956.0,0.47329608]
[1772953836495,1.27977745,1956.6,1956.0,0.47329608]
[1772953836649,0.26911841,1956.5,1956.0,0.47329608]
[1772953836849,1.54697569,1956.4,1956.0,0.47329608]
[1772953837263,0.26911841,1956.3,1955.9,0.47429608]
[1772953837469,0.26911841,1956.3,1955.9,0.001]
[1772953838847,1.27798793,1956.2,1955.9,0.47429608]
[1772953839073,0.26911841,1956.4,1955.9,0.47429608]
[1772953841473,1.5469855,1956.4,1956.0,0.47329608]
[1772953842054,0.26911841,1956.3,1955.9,0.001]
[1772953842485,0.26911841,1956.3,1955.9,0.47429608]
[1772953843290,0.26911841,1956.3,1956.0,0.001]
[1772953843499,1.54909075,1956.3,1956.0,0.001]
[1772953845500,1.27997234,1956.3,1956.0,0.47429608]
[1772953845702,0.002,1956.3,1956.0,0.47429608]
[1772953845901,1.27992998,1956.3,1956.0,0.47429608]
[1772953846770,1.27992804,1956.3,1956.0,0.47429608]
[1772953847102,0.002,1956.3,1956.0,0.47429608]
[1772953847893,1.27992814,1956.3,1956.0,0.47429608]
[1772953848573,0.27111841,1956.3,1956.0,0.47429608]
[1772953850371,0.002,1956.3,1956.0,0.47429608]
[1772953852201,0.002,1956.3,1956.2,0.47329608]
[1772953857227,11.18639675,1957.1,1956.2,0.47329608]
[1772953857228,0.003,1958.3,1957.7,0.47329608]
[1772953857508,0.3506675,1958.2,1957.7,0.47329608]
[1772953858003,0.65717907,1958.1,1957.3,0.47329608]
[1772953858222,0.30651157,1958.1,1957.3,0.47329608]
[1772953858604,0.3506675,1958.0,1957.3,0.47329608]
[1772953858812,1.7618985,1957.8,1957.1,0.47329608]
[1772953858985,0.484955,1957.7,1957.1,0.47329608]
[1772953859185,0.3506675,1957.7,1957.2,0.47329608]
[1772953860495,0.8356225,1957.6,1957.0,0.47483494]
[1772953860694,0.484955,1957.6,1957.0,0.47483494]
[1772953860931,1.6278067,1957.5,1957.0,0.47483494]
[1772953861587,0.3506675,1957.4,1957.0,0.47483494]
[1772953862088,0.3506675,1957.3,1957.0,0.00153886]
[1772953862284,0.99175434,1957.4,1957.0,0.00153886]
[1772953862696,0.3506675,1957.3,1957.0,0.00153886]
[1772953863019,1.27733496,1957.2,1957.0,0.00153886]
[1772953863320,1.62798372,1957.3,1957.0,0.00153886]
[1772953863521,0.3506675,1957.2,1957.0,0.00153886]
[1772953864488,1.27731622,1957.3,1957.0,0.00153886]
[1772953864489,0.3506675,1957.1,1957.0,0.00153886]
[1772953864702,1.27731622,1957.3,1957.0,0.00153886]
[1772953865011,1.6280338,1957.2,1957.0,0.00153886]
[1772953865917,0.3506675,1957.1,1957.0,0.00153886]
[1772953866117,1.6280338,1957.2,1957.0,0.00153886]
[1772953866317,1.2773663,1957.2,1957.0,0.00153886]
[1772953866914,1.6280338,1957.2,1957.0,0.00153886]
[1772953867413,1.6280338,1957.2,1957.0,0.66096205]
[1772953867790,7.277331,1957.6,1957.2,2.2219662]
[1772953868086,1.2771392,1957.5,1957.2,2.2219662]
[1772953868286,0.60400831,1957.4,1957.2,1.95489156]
[1772953868904,1.2771392,1957.5,1957.2,1.95489156]
[1772953871209,1.2771392,1957.5,1957.1,3.851]
[1772953871402,1.2771392,1957.5,1957.1,4.51042319]
[1772953872829,1.27712503,1957.6,1957.2,0.65942319]
[1772953873006,0.58468753,1957.7,1957.3,2.57287497]
[1772953873206,0.58468753,1957.5,1957.1,0.001]
[1772953874235,0.60400831,1957.4,1957.1,0.001]
[1772953875236,1.2772697,1957.3,1957.1,0.001]
[1772953875409,1.88126414,1957.4,1957.1,0.001]
[1772953877529,0.60400831,1957.3,1957.1,3.851]
[1772953877720,0.60400831,1957.3,1957.0,2.37091727]
[1772953877919,0.60400831,1957.3,1956.8,0.001]
[1772953878119,1.27725583,1957.4,1956.1,0.66042319]
[1772953878120,0.35482949,1957.1,1956.1,0.66042319]
[1772953878432,2.53827505,1956.9,1956.2,0.001]
[1772953878616,2.53827505,1956.9,1956.1,0.002]
[1772953878617,0.35482949,1956.8,1956.1,0.002]
[1772953878821,0.35482949,1956.8,1956.2,0.001]
[1772953879414,0.39530878,1956.6,1956.2,0.001]
[1772953879611,1.27766136,1956.7,1956.1,0.001]
[1772953879612,0.39266939,1956.4,1956.1,0.001]
[1772953879834,0.39266939,1956.4,1956.1,0.002]
[1772953880052,0.39266939,1956.4,1955.9,0.001]
[1772953880838,0.39012684,1956.3,1955.9,0.001]
[1772953882136,0.38747585,1956.1,1955.9,0.001]
[1772953882343,1.569,1956.0,1955.9,0.001]
[1772953884345,2.8471186,1956.0,1955.9,0.001]
[1772953884570,2.8471186,1956.0,1955.8,0.001]
[1772953884729,2.8471186,1956.0,1955.8,0.002]
[1772953885245,2.8471186,1956.0,1955.6,0.001]
[1772953885246,0.37949103,1955.9,1955.6,0.001]
[1772953887148,1.2782493,1955.8,1955.6,0.001]
[1772953887644,1.572,1955.7,1955.6,0.001]
[1772953888208,1.572,1955.7,1955.5,0.65942319]
[1772953888614,1.572,1955.7,1955.2,1.2786102]
[1772953888814,1.572,1955.7,1955.3,0.65942319]
[1772953889222,1.27838003,1955.6,1955.1,1.93908073]
[1772953889420,1.27838003,1955.6,1955.2,0.65942319]
[1772953889821,2.85036135,1955.7,1955.2,0.65942319]
[1772953890023,1.572,1955.7,1955.2,0.65942319]
[1772953890422,1.572,1955.7,1955.1,1.27965754]
[1772953890423,2.51853512,1955.7,1955.4,0.65942319]
[1772953891755,1.24021354,1955.7,1955.4,0.65942319]
[1772953891959,2.51854157,1955.7,1955.4,0.65942319]
[1772953892156,1.24021354,1955.7,1955.5,3.03034046]
[1772953892332,1.24021354,1955.7,1955.6,2.37091727]
[1772953892333,2.5185282,1955.7,1955.6,2.37091727]
[1772953893057,3.33488354,1955.7,1955.6,2.37091727]
[1772953893225,3.89560391,1955.7,1955.1,2.0760851]
[1772953893537,3.89560391,1955.7,1955.2,5.92502928]
[1772953894359,3.07924857,1955.7,1955.3,0.79639789]
[1772953894561,3.07925282,1955.7,1955.3,0.79639789]
[1772953894726,2.13572037,1955.7,1955.3,0.79639789]
[1772953895767,0.56072037,1955.7,1955.4,0.79639789]
[1772953896199,0.81635534,1956.3,1955.5,0.79639789]
[1772953896781,0.81635534,1956.3,1955.7,0.79639789]
[1772953897287,1.27784392,1956.5,1955.7,0.79639789]
[1772953897846,1.27784392,1956.5,1955.8,1.2782493]
[1772953897847,0.002,1955.9,1955.8,1.2782493]
[1772953898076,1.27784392,1956.5,1955.9,0.79639789]
[1772953900196,1.27784392,1956.5,1956.0,2.07451649]
[1772953902882,1.27784392,1956.5,1956.1,3.85]
[1772953903651,2.09419926,1956.5,1956.1,3.85]
[1772953904682,2.09417228,1956.5,1956.1,3.85]
[1772953904880,0.81635534,1956.5,1956.1,3.85]
[1772953905179,2.09391703,1956.9,1956.3,0.79639789]
[1772953905347,3.67091703,1956.9,1956.4,4.62084091]
[1772953905552,2.09391703,1956.9,1956.5,3.82444302]
[1772953905755,3.67091703,1956.9,1956.5,3.82444302]
[1772953906167,2.85602761,1957.0,1956.5,4.62084091]
[1772953906462,1.27902761,1957.0,1956.5,3.82444302]
[1772953906685,1.27902761,1957.0,1956.6,0.79639789]
[1772953909581,1.27931879,1957.3,1956.8,0.79639789]
[1772953909787,0.002,1957.3,1956.8,0.79639789]
[1772953909991,0.002,1957.2,1956.9,0.79639789]
[1772953910378,0.002,1957.2,1956.5,5.11102718]
[1772953910379,0.002,1957.2,1956.7,3.82444302]
[1772953910380,0.81835534,1957.2,1956.7,3.82444302]
[1772953910602,0.81835534,1957.2,1956.3,0.79639789]
[1772953910766,0.81835534,1957.2,1956.1,4.75351615]
[1772953910971,0.81835534,1957.2,1956.1,2.07440343]
[1772953912111,0.81635534,1957.0,1956.1,2.07440343]
[1772953913499,0.81635534,1957.0,1956.2,0.79639789]
[1772953913665,2.39335534,1956.9,1956.2,0.79639789]
[1772953914471,1.27759607,1956.8,1956.3,2.07432049]
[1772953916089,0.81635534,1956.9,1956.4,3.82444302]
[1772953917392,0.81635534,1956.7,1956.4,3.82444302]
[1772953917576,0.81635534,1956.7,1956.2,3.82444302]
[1772953918477,0.81635534,1956.7,1956.2,5.89882353]
[1772953918683,2.39235534,1956.7,1956.2,4.62084091]
[1772953921409,1.27772666,1956.6,1956.2,4.62084091]
[1772953921588,1.27772666,1956.6,1956.3,0.001]
[1772953921788,0.81635534,1956.5,1956.3,0.001]
[1772953922807,0.81635534,1956.5,1956.2,3.82544302]
[1772953923330,0.81635534,1956.5,1956.3,3.82444302]
[1772953923494,2.08373986,1956.4,1956.3,3.82444302]
[1772953924083,2.08373986,1956.4,1956.2,0.001]
[1772953929924,1.27785728,1956.4,1956.2,0.001]
[1772953932136,2.08373986,1956.4,1956.2,0.001]
[1772953932629,2.08373986,1956.4,1956.2,3.851]
[1772953932801,1.577,1956.3,1956.2,3.851]
[1772953934137,3.66080518,1956.3,1956.2,3.851]
[1772953935620,3.66080518,1956.3,1956.2,0.001]
[1772953937233,0.002,1956.4,1956.2,0.80210902]
[1772953937440,1.578,1956.3,1956.2,0.80210902]